[Event "*** Titled Tuesday Blitz"]
[Site "Chess.com"]
[Date "2020.11.24"]
[Round "11"]
[White "Harry_Rakkel"]
[Black "nitpicker"]
[Result "1-0"]
[WhiteElo "2467"]
[BlackElo "2294"]
[TimeControl "180+1"]
[EndTime "12:24:45 PST"]
[Termination "Harry_Rakkel won on time"]

1. d4 {[%clk 0:03:00.9]} 1... Nf6 {[%clk 0:02:59.5]} 2. c4 {[%clk 0:03:00.6]}
2... e6 {[%clk 0:02:59.3]} 3. Nc3 {[%clk 0:03:00]} 3... Bb4 {[%clk 0:02:59.2]}
4. Qb3 {[%clk 0:02:58.9]} 4... c5 {[%clk 0:02:53.4]} 5. dxc5 {[%clk 0:02:58.1]}
5... Bxc5 {[%clk 0:02:53]} 6. Nf3 {[%clk 0:02:54.2]} 6... a6 {[%clk 0:02:51.4]}
7. Bg5 {[%clk 0:02:51]} 7... Be7 {[%clk 0:02:51.2]} 8. Rd1 {[%clk 0:02:49.6]}
8... Qc7 {[%clk 0:02:50.2]} 9. e4 {[%clk 0:02:47.4]} 9... d6 {[%clk 0:02:49.9]}
10. Be2 {[%clk 0:02:43.4]} 10... Nbd7 {[%clk 0:02:49.7]} 11. O-O {[%clk
0:02:42.9]} 11... b6 {[%clk 0:02:46.9]} 12. Rfe1 {[%clk 0:02:38.8]} 12... Bb7
{[%clk 0:02:46.6]} 13. Bf1 {[%clk 0:02:38]} 13... O-O {[%clk 0:02:46.1]} 14. h3
{[%clk 0:02:36.4]} 14... h6 {[%clk 0:02:31.3]} 15. Bf4 {[%clk 0:02:35.2]} 15...
Ne5 {[%clk 0:02:26.5]} 16. Nd2 {[%clk 0:02:30]} 16... Rac8 {[%clk 0:02:21]} 17.
Bh2 {[%clk 0:02:27.6]} 17... Ned7 {[%clk 0:01:53.7]} 18. a4 {[%clk 0:02:17.7]}
18... Rfd8 {[%clk 0:01:50.8]} 19. Qa2 {[%clk 0:02:14.8]} 19... Qb8 {[%clk
0:01:46.8]} 20. Qb1 {[%clk 0:02:10.8]} 20... Qa8 {[%clk 0:01:28.8]} 21. Re3
{[%clk 0:02:07.7]} 21... Bf8 {[%clk 0:01:20.6]} 22. Rde1 {[%clk 0:02:02.8]}
22... Bc6 {[%clk 0:01:11.1]} 23. Nb3 {[%clk 0:01:59.7]} 23... Nc5 {[%clk
0:01:07.4]} 24. Nxc5 {[%clk 0:01:39.9]} 24... bxc5 {[%clk 0:01:07.1]} 25. e5
{[%clk 0:01:36.9]} 25... dxe5 {[%clk 0:01:01.6]} 26. Bxe5 {[%clk 0:01:37.3]}
26... Nd7 {[%clk 0:01:00.6]} 27. Bf4 {[%clk 0:01:33.9]} 27... Qb7 {[%clk
0:00:57.7]} 28. Rg3 {[%clk 0:01:31.8]} 28... Kh8 {[%clk 0:00:57.9]} 29. Bd3
{[%clk 0:01:25.7]} 29... e5 {[%clk 0:00:52.7]} 30. Rxe5 {[%clk 0:01:20.1]} 30...
Bd6 {[%clk 0:00:41]} 31. Bxh6 {[%clk 0:00:59.2]} 31... Bxe5 {[%clk 0:00:37.5]}
32. Bxg7+ {[%clk 0:00:59.3]} 32... Bxg7 {[%clk 0:00:35.7]} 33. Qd1 {[%clk
0:00:58.4]} 33... Nf6 {[%clk 0:00:34.9]} 34. Qd2 {[%clk 0:00:53.3]} 34... Be4
{[%clk 0:00:13.4]} 35. Qg5 {[%clk 0:00:51.1]} 35... Bg6 {[%clk 0:00:03.6]} 36.
Bxg6 {[%clk 0:00:49.4]} 36... fxg6 {[%clk 0:00:04]} 37. Qxg6 {[%clk 0:00:49.1]}
37... Qe7 {[%clk 0:00:01.2]} 38. Rg5 {[%clk 0:00:40.3]} 38... Kg8 {[%clk
0:00:01.3]} 39. f4 {[%clk 0:00:28.3]} 39... Qf7 {[%clk 0:00:01.5]} 40. Qc2
{[%clk 0:00:26.9]} 40... Qxc4 {[%clk 0:00:01.2]} 41. Qf5 {[%clk 0:00:22.8]} 1-0

[Event "*** Titled Tuesday Blitz"]
[Site "Chess.com"]
[Date "2020.11.24"]
[Round "11"]
[White "GregShahade"]
[Black "Artyom_ChessMate"]
[Result "0-1"]
[WhiteElo "2693"]
[BlackElo "2540"]
[TimeControl "180+1"]
[EndTime "12:24:48 PST"]
[Termination "Artyom_ChessMate won by resignation"]

1. e4 {[%clk 0:03:00.9]} 1... c5 {[%clk 0:02:54]} 2. Nf3 {[%clk 0:03:01]} 2...
d6 {[%clk 0:02:54.1]} 3. d4 {[%clk 0:03:01.3]} 3... cxd4 {[%clk 0:02:55]} 4.
Nxd4 {[%clk 0:03:01.8]} 4... Nf6 {[%clk 0:02:55.6]} 5. Nc3 {[%clk 0:03:02.3]}
5... g6 {[%clk 0:02:55.3]} 6. Be3 {[%clk 0:03:01.7]} 6... Bg7 {[%clk 0:02:55.2]}
7. f3 {[%clk 0:03:02.1]} 7... O-O {[%clk 0:02:55.2]} 8. Qd2 {[%clk 0:03:02.6]}
8... Nc6 {[%clk 0:02:55.6]} 9. O-O-O {[%clk 0:03:02.7]} 9... d5 {[%clk
0:02:55.8]} 10. Qe1 {[%clk 0:03:00.4]} 10... e5 {[%clk 0:02:55.5]} 11. Nxc6
{[%clk 0:03:00.2]} 11... bxc6 {[%clk 0:02:56.4]} 12. exd5 {[%clk 0:02:58.7]}
12... Nxd5 {[%clk 0:02:57.3]} 13. Bc4 {[%clk 0:02:56.6]} 13... Be6 {[%clk
0:02:38.7]} 14. Ne4 {[%clk 0:02:51.7]} 14... Qc7 {[%clk 0:02:34.7]} 15. Bc5
{[%clk 0:02:48.2]} 15... Rfd8 {[%clk 0:02:31.9]} 16. Qh4 {[%clk 0:02:48]} 16...
h6 {[%clk 0:02:24.5]} 17. g4 {[%clk 0:02:46.8]} 17... Nf4 {[%clk 0:02:24.1]} 18.
Bxe6 {[%clk 0:02:31.7]} 18... Nxe6 {[%clk 0:02:25]} 19. Be3 {[%clk 0:02:30.7]}
19... Nf4 {[%clk 0:02:24.9]} 20. Rxd8+ {[%clk 0:02:29.8]} 20... Rxd8 {[%clk
0:02:09.1]} 21. Qf2 {[%clk 0:02:29.7]} 21... Qa5 {[%clk 0:01:53.7]} 22. Kb1
{[%clk 0:02:21.7]} 22... Nd5 {[%clk 0:01:46]} 23. Bd2 {[%clk 0:02:06.2]} 23...
Qb5 {[%clk 0:01:16]} 24. b3 {[%clk 0:02:01.1]} 24... a5 {[%clk 0:01:06.8]} 25.
c4 {[%clk 0:01:57]} 25... Qb7 {[%clk 0:01:00.3]} 26. cxd5 {[%clk 0:01:56.4]}
26... cxd5 {[%clk 0:00:56.7]} 27. Nc5 {[%clk 0:01:56.5]} 27... Qe7 {[%clk
0:00:52.5]} 28. Rc1 {[%clk 0:01:53.6]} 28... Rc8 {[%clk 0:00:46.5]} 29. Nd3
{[%clk 0:01:49.5]} 29... Rxc1+ {[%clk 0:00:41.3]} 30. Bxc1 {[%clk 0:01:48]}
30... e4 {[%clk 0:00:42.2]} 31. fxe4 {[%clk 0:01:16.7]} 31... dxe4 {[%clk
0:00:41.1]} 32. Ne1 {[%clk 0:01:02.3]} 32... Qe5 {[%clk 0:00:23.5]} 33. Bb2
{[%clk 0:00:58.3]} 33... e3 {[%clk 0:00:23.8]} 34. Qc2 {[%clk 0:00:51.9]} 34...
Qf4 {[%clk 0:00:22.9]} 35. Bxg7 {[%clk 0:00:48.9]} 35... Kxg7 {[%clk 0:00:23.8]}
36. h3 {[%clk 0:00:32.9]} 36... Qf2 {[%clk 0:00:23.1]} 37. Qc3+ {[%clk
0:00:30.4]} 37... Kh7 {[%clk 0:00:23.3]} 38. Qxa5 {[%clk 0:00:28.5]} 38... Qd2
{[%clk 0:00:19.5]} 39. Qc7 {[%clk 0:00:13.7]} 39... Qxe1+ {[%clk 0:00:19.2]} 40.
Kb2 {[%clk 0:00:14.4]} 40... Qf2+ {[%clk 0:00:20]} 41. Kc1 {[%clk 0:00:04.7]}
41... e2 {[%clk 0:00:20.9]} 0-1

[Event "*** Titled Tuesday Blitz"]
[Site "Chess.com"]
[Date "2020.11.24"]
[Round "11"]
[White "Satscho"]
[Black "ShahMatKanal"]
[Result "1-0"]
[WhiteElo "2376"]
[BlackElo "2499"]
[TimeControl "180+1"]
[EndTime "12:24:48 PST"]
[Termination "Satscho won by checkmate"]

1. e4 {[%clk 0:03:00.9]} 1... c5 {[%clk 0:02:58]} 2. Nf3 {[%clk 0:03:00.9]} 2...
d6 {[%clk 0:02:57.1]} 3. d4 {[%clk 0:03:01.1]} 3... Nf6 {[%clk 0:02:57.3]} 4.
Nc3 {[%clk 0:03:00.6]} 4... cxd4 {[%clk 0:02:57.7]} 5. Nxd4 {[%clk 0:03:01.3]}
5... g6 {[%clk 0:02:58.2]} 6. Be2 {[%clk 0:02:54.4]} 6... Bg7 {[%clk 0:02:58.3]}
7. Be3 {[%clk 0:02:55.1]} 7... O-O {[%clk 0:02:58]} 8. Qd2 {[%clk 0:02:53]} 8...
Ng4 {[%clk 0:02:55.1]} 9. Bxg4 {[%clk 0:02:52.3]} 9... Bxg4 {[%clk 0:02:54.7]}
10. f3 {[%clk 0:02:52.9]} 10... Be6 {[%clk 0:02:49.1]} 11. O-O-O {[%clk
0:02:51.8]} 11... Nc6 {[%clk 0:02:47]} 12. h4 {[%clk 0:02:49.8]} 12... Ne5
{[%clk 0:02:09.9]} 13. b3 {[%clk 0:02:33.5]} 13... Qa5 {[%clk 0:02:00.9]} 14.
Kb1 {[%clk 0:02:15.8]} 14... Rfc8 {[%clk 0:01:14.9]} 15. Nd5 {[%clk 0:02:14.2]}
15... Qa3 {[%clk 0:00:35.6]} 16. Nxe7+ {[%clk 0:01:59.9]} 16... Kf8 {[%clk
0:00:35]} 17. Nxc8 {[%clk 0:01:58.3]} 17... Nc4 {[%clk 0:00:15.1]} 18. bxc4
{[%clk 0:01:52]} 18... Bxc4 {[%clk 0:00:14.6]} 19. c3 {[%clk 0:01:38.6]} 19...
Rxc8 {[%clk 0:00:14.8]} 20. Qb2 {[%clk 0:01:26.1]} 20... Qa6 {[%clk 0:00:08.8]}
21. Rd2 {[%clk 0:01:16.6]} 21... b5 {[%clk 0:00:08.3]} 22. Qb4 {[%clk
0:01:14.1]} 22... Kg8 {[%clk 0:00:07.9]} 23. h5 {[%clk 0:01:12.2]} 23... Qb7
{[%clk 0:00:06.8]} 24. hxg6 {[%clk 0:01:07.8]} 24... hxg6 {[%clk 0:00:07.7]} 25.
Bh6 {[%clk 0:00:51.6]} 25... a5 {[%clk 0:00:07.5]} 26. Qxd6 {[%clk 0:00:51.1]}
26... b4 {[%clk 0:00:06.1]} 27. cxb4 {[%clk 0:00:43.2]} 27... Bxh6 {[%clk
0:00:04]} 28. Rxh6 {[%clk 0:00:42.6]} 28... Kg7 {[%clk 0:00:04.9]} 29. Rh2
{[%clk 0:00:30.6]} 29... Bb5 {[%clk 0:00:01.7]} 30. Qe5+ {[%clk 0:00:29.2]}
30... f6 {[%clk 0:00:02.1]} 31. Qxb5 {[%clk 0:00:21.6]} 31... Qf7 {[%clk
0:00:01.4]} 32. Qd5 {[%clk 0:00:18.1]} 32... Qe7 {[%clk 0:00:01.1]} 33. Ne6+
{[%clk 0:00:16.8]} 33... Kg8 {[%clk 0:00:01.5]} 34. Ng5+ {[%clk 0:00:14.4]}
34... Kg7 {[%clk 0:00:01.4]} 35. Rh7+ {[%clk 0:00:14.4]} 35... Kf8 {[%clk
0:00:01.8]} 36. Rf7+ {[%clk 0:00:13.2]} 36... Qxf7 {[%clk 0:00:01.8]} 37. Qxf7#
{[%clk 0:00:13.2]} 1-0

[Event "*** Titled Tuesday Blitz"]
[Site "Chess.com"]
[Date "2020.11.24"]
[Round "11"]
[White "LiderChessAcademy"]
[Black "Margency"]
[Result "1-0"]
[WhiteElo "2587"]
[BlackElo "2672"]
[TimeControl "180+1"]
[EndTime "12:24:49 PST"]
[Termination "LiderChessAcademy won by resignation"]

1. d4 {[%clk 0:03:00.9]} 1... d5 {[%clk 0:02:59.6]} 2. c4 {[%clk 0:03:00.3]}
2... e6 {[%clk 0:02:59.8]} 3. Nf3 {[%clk 0:02:56.9]} 3... c5 {[%clk 0:02:59.7]}
4. g3 {[%clk 0:02:56.7]} 4... Nf6 {[%clk 0:02:58.9]} 5. Bg2 {[%clk 0:02:56.9]}
5... Be7 {[%clk 0:02:53]} 6. a3 {[%clk 0:02:45.8]} 6... dxc4 {[%clk 0:02:44.5]}
7. Qa4+ {[%clk 0:02:44.1]} 7... Bd7 {[%clk 0:02:41.1]} 8. Qxc4 {[%clk
0:02:42.9]} 8... Bc6 {[%clk 0:02:09.8]} 9. dxc5 {[%clk 0:02:40.3]} 9... O-O
{[%clk 0:02:03.2]} 10. b4 {[%clk 0:02:26.1]} 10... a5 {[%clk 0:01:58.6]} 11. Bb2
{[%clk 0:02:19.5]} 11... axb4 {[%clk 0:01:56.4]} 12. axb4 {[%clk 0:02:20.4]}
12... Rxa1 {[%clk 0:01:53]} 13. Bxa1 {[%clk 0:02:21.3]} 13... Bd5 {[%clk
0:01:51.7]} 14. Qf4 {[%clk 0:02:02.8]} 14... b6 {[%clk 0:01:48]} 15. O-O {[%clk
0:01:51.6]} 15... bxc5 {[%clk 0:01:47.8]} 16. bxc5 {[%clk 0:01:52]} 16... Bxc5
{[%clk 0:01:46.8]} 17. Nc3 {[%clk 0:01:44.7]} 17... Ba8 {[%clk 0:01:40.5]} 18.
Na4 {[%clk 0:01:28.9]} 18... Be7 {[%clk 0:01:34.5]} 19. Ne5 {[%clk 0:01:08.3]}
19... Bxg2 {[%clk 0:01:28.1]} 20. Kxg2 {[%clk 0:01:09.2]} 20... Qa5 {[%clk
0:01:27.8]} 21. Bc3 {[%clk 0:01:04.4]} 21... Qa8+ {[%clk 0:01:24.6]} 22. Kg1
{[%clk 0:01:01.1]} 22... Nd5 {[%clk 0:01:17.8]} 23. Qc4 {[%clk 0:00:56.3]} 23...
Nxc3 {[%clk 0:01:08.1]} 24. Nxc3 {[%clk 0:00:57.2]} 24... Bf6 {[%clk 0:01:07.5]}
25. Nd3 {[%clk 0:00:48.9]} 25... Nd7 {[%clk 0:01:00.2]} 26. Ne4 {[%clk
0:00:47.9]} 26... Rc8 {[%clk 0:00:54.9]} 27. Nxf6+ {[%clk 0:00:45.5]} 27... Nxf6
{[%clk 0:00:55.8]} 28. Qb3 {[%clk 0:00:38.2]} 28... Qe4 {[%clk 0:00:50.1]} 29.
Rc1 {[%clk 0:00:32.5]} 29... Rxc1+ {[%clk 0:00:38.2]} 30. Nxc1 {[%clk
0:00:33.4]} 30... h5 {[%clk 0:00:38.2]} 31. Qd3 {[%clk 0:00:27.9]} 31... Qb4
{[%clk 0:00:33.6]} 32. Nb3 {[%clk 0:00:27.1]} 32... h4 {[%clk 0:00:30.5]} 33.
Kg2 {[%clk 0:00:23.7]} 33... Nd5 {[%clk 0:00:24.2]} 34. Nd4 {[%clk 0:00:20.1]}
34... hxg3 {[%clk 0:00:18.1]} 35. hxg3 {[%clk 0:00:19.9]} 35... Qb7 {[%clk
0:00:16.9]} 36. Nf3 {[%clk 0:00:19.8]} 36... Nf6 {[%clk 0:00:15.9]} 37. Qd8+
{[%clk 0:00:16.7]} 37... Kh7 {[%clk 0:00:16.1]} 38. Qd3+ {[%clk 0:00:17.2]}
38... g6 {[%clk 0:00:16.3]} 39. Kg1 {[%clk 0:00:15.4]} 39... Ne4 {[%clk
0:00:15.5]} 40. Qxe4 {[%clk 0:00:14.3]} 40... Qxe4 {[%clk 0:00:10.7]} 41. Ng5+
{[%clk 0:00:14.3]} 41... Kg7 {[%clk 0:00:11.6]} 42. Nxe4 {[%clk 0:00:15.2]} 1-0

[Event "*** Titled Tuesday Blitz"]
[Site "Chess.com"]
[Date "2020.11.24"]
[Round "11"]
[White "zocpoc71"]
[Black "Sjakkerntobi"]
[Result "1-0"]
[WhiteElo "2487"]
[BlackElo "2357"]
[TimeControl "180+1"]
[EndTime "12:24:53 PST"]
[Termination "zocpoc71 won by resignation"]

1. e4 {[%clk 0:02:59.8]} 1... e6 {[%clk 0:02:50.2]} 2. d4 {[%clk 0:02:59.3]}
2... d5 {[%clk 0:02:51.1]} 3. Nc3 {[%clk 0:02:59.8]} 3... Bb4 {[%clk 0:02:46.9]}
4. e5 {[%clk 0:02:59.8]} 4... Ne7 {[%clk 0:02:46.8]} 5. Bd2 {[%clk 0:02:59.8]}
5... b6 {[%clk 0:02:46.5]} 6. Nb5 {[%clk 0:02:59.2]} 6... Bxd2+ {[%clk
0:02:45.4]} 7. Qxd2 {[%clk 0:03:00.1]} 7... Ba6 {[%clk 0:02:44.5]} 8. a4 {[%clk
0:02:59.6]} 8... O-O {[%clk 0:02:44.1]} 9. f4 {[%clk 0:02:59.2]} 9... c5 {[%clk
0:02:21.7]} 10. c3 {[%clk 0:02:56.7]} 10... Nbc6 {[%clk 0:02:16.2]} 11. Nf3
{[%clk 0:02:56.6]} 11... Nf5 {[%clk 0:02:13.3]} 12. Bd3 {[%clk 0:02:51.1]} 12...
cxd4 {[%clk 0:02:11.1]} 13. Nbxd4 {[%clk 0:02:43.2]} 13... Ncxd4 {[%clk
0:02:05.4]} 14. Nxd4 {[%clk 0:02:29.8]} 14... Bxd3 {[%clk 0:01:50.8]} 15. Qxd3
{[%clk 0:02:28.6]} 15... Nxd4 {[%clk 0:01:51]} 16. cxd4 {[%clk 0:02:20.5]} 16...
Rc8 {[%clk 0:01:49.2]} 17. O-O {[%clk 0:02:19.3]} 17... Qe7 {[%clk 0:01:47.2]}
18. f5 {[%clk 0:02:15]} 18... exf5 {[%clk 0:01:45]} 19. Rxf5 {[%clk 0:02:14]}
19... Rc4 {[%clk 0:01:44.5]} 20. b3 {[%clk 0:02:12.2]} 20... Rc6 {[%clk
0:01:44.5]} 21. Raf1 {[%clk 0:02:11.6]} 21... Rh6 {[%clk 0:01:17]} 22. h3 {[%clk
0:02:00.5]} 22... Rg6 {[%clk 0:01:07.1]} 23. Qf3 {[%clk 0:01:57]} 23... Qe6
{[%clk 0:01:05.4]} 24. h4 {[%clk 0:01:53.5]} 24... Qe7 {[%clk 0:00:54.1]} 25. h5
{[%clk 0:01:50]} 25... Rc6 {[%clk 0:00:54.1]} 26. Qxd5 {[%clk 0:01:40.6]} 26...
Rc2 {[%clk 0:00:49.2]} 27. e6 {[%clk 0:01:23.1]} 27... f6 {[%clk 0:00:48.1]} 28.
R5f2 {[%clk 0:01:17.4]} 28... Rc7 {[%clk 0:00:38.1]} 29. h6 {[%clk 0:01:13.1]}
29... g6 {[%clk 0:00:36.9]} 30. Rxf6 {[%clk 0:00:55.5]} 30... Rxf6 {[%clk
0:00:24.3]} 31. Rxf6 {[%clk 0:00:54.9]} 31... Rc1+ {[%clk 0:00:07.2]} 32. Rf1
{[%clk 0:00:34.5]} 32... Rc8 {[%clk 0:00:07.1]} 33. Qe4 {[%clk 0:00:24.6]} 33...
Rd8 {[%clk 0:00:05.1]} 34. Rf7 {[%clk 0:00:17.8]} 34... Qe8 {[%clk 0:00:03.4]}
35. Qe5 {[%clk 0:00:17.1]} 35... Rd5 {[%clk 0:00:02.4]} 1-0

[Event "*** Titled Tuesday Blitz"]
[Site "Chess.com"]
[Date "2020.11.24"]
[Round "11"]
[White "Shahinyan_ChessMood"]
[Black "Witik"]
[Result "1-0"]
[WhiteElo "2831"]
[BlackElo "2693"]
[TimeControl "180+1"]
[EndTime "12:24:55 PST"]
[Termination "Shahinyan_ChessMood won on time"]

1. e4 {[%clk 0:03:00.9]} 1... c6 {[%clk 0:02:55.8]} 2. d4 {[%clk 0:03:00.6]}
2... d5 {[%clk 0:02:55.8]} 3. exd5 {[%clk 0:03:01.5]} 3... cxd5 {[%clk 0:02:56]}
4. Bd3 {[%clk 0:03:02.4]} 4... Nc6 {[%clk 0:02:56]} 5. c3 {[%clk 0:03:03.3]}
5... g6 {[%clk 0:02:56.2]} 6. Nf3 {[%clk 0:03:02.7]} 6... Bg7 {[%clk 0:02:54.1]}
7. Bf4 {[%clk 0:03:03.1]} 7... f6 {[%clk 0:02:42.8]} 8. O-O {[%clk 0:03:00.9]}
8... Nh6 {[%clk 0:02:34.5]} 9. Re1 {[%clk 0:02:50.9]} 9... O-O {[%clk
0:02:28.8]} 10. Bg3 {[%clk 0:02:45.9]} 10... Nf5 {[%clk 0:02:22.3]} 11. Nbd2
{[%clk 0:02:09.1]} 11... Nxg3 {[%clk 0:02:17.9]} 12. hxg3 {[%clk 0:02:10]} 12...
e5 {[%clk 0:02:18.4]} 13. dxe5 {[%clk 0:02:09.2]} 13... fxe5 {[%clk 0:02:18.3]}
14. Bc2 {[%clk 0:02:03.4]} 14... e4 {[%clk 0:02:16.2]} 15. Nh2 {[%clk
0:01:59.4]} 15... Qb6 {[%clk 0:02:11.8]} 16. Re2 {[%clk 0:01:51.5]} 16... Kh8
{[%clk 0:01:45.6]} 17. Bb3 {[%clk 0:01:48.2]} 17... Rd8 {[%clk 0:01:17.7]} 18.
Qe1 {[%clk 0:01:30.3]} 18... Bf5 {[%clk 0:01:14.8]} 19. Ndf1 {[%clk 0:01:29]}
19... d4 {[%clk 0:01:13.5]} 20. g4 {[%clk 0:01:21.6]} 20... d3 {[%clk
0:01:04.4]} 21. Re3 {[%clk 0:01:21.2]} 21... Bd7 {[%clk 0:01:03.6]} 22. Rxe4
{[%clk 0:01:20.9]} 22... Re8 {[%clk 0:00:57.3]} 23. Rd1 {[%clk 0:01:19.4]} 23...
Rxe4 {[%clk 0:00:54.2]} 24. Qxe4 {[%clk 0:01:20.3]} 24... Ne5 {[%clk 0:00:54.9]}
25. Ne3 {[%clk 0:01:14.6]} 25... Rf8 {[%clk 0:00:52.8]} 26. Rd2 {[%clk
0:01:00.8]} 26... Bc6 {[%clk 0:00:52.7]} 27. Qb4 {[%clk 0:00:55]} 27... Qd8
{[%clk 0:00:40.5]} 28. Nc4 {[%clk 0:00:39]} 28... Qg5 {[%clk 0:00:35.1]} 29.
Nxe5 {[%clk 0:00:17]} 29... Qxd2 {[%clk 0:00:29.2]} 30. Nf7+ {[%clk 0:00:16.3]}
30... Rxf7 {[%clk 0:00:29.4]} 31. Bxf7 {[%clk 0:00:17.2]} 31... Qe1+ {[%clk
0:00:22.4]} 32. Nf1 {[%clk 0:00:17.6]} 32... d2 {[%clk 0:00:20.7]} 33. Bb3
{[%clk 0:00:15.2]} 33... h6 {[%clk 0:00:13.8]} 34. Qd6 {[%clk 0:00:12.1]} 34...
Qe4 {[%clk 0:00:08.4]} 35. f3 {[%clk 0:00:12.2]} 35... Qe1 {[%clk 0:00:03.3]}
36. Qd8+ {[%clk 0:00:11.8]} 1-0

[Event "*** Titled Tuesday Blitz"]
[Site "Chess.com"]
[Date "2020.11.24"]
[Round "11"]
[White "JiiHart"]
[Black "Mambastik-Fantastic"]
[Result "0-1"]
[WhiteElo "2093"]
[BlackElo "2309"]
[TimeControl "180+1"]
[EndTime "12:24:57 PST"]
[Termination "Mambastik-Fantastic won on time"]

1. e4 {[%clk 0:03:00.9]} 1... c5 {[%clk 0:02:58.8]} 2. Nf3 {[%clk 0:03:00.8]}
2... d6 {[%clk 0:02:58]} 3. d4 {[%clk 0:03:01.3]} 3... cxd4 {[%clk 0:02:57.1]}
4. Nxd4 {[%clk 0:03:02.2]} 4... Nf6 {[%clk 0:02:57.2]} 5. Nc3 {[%clk 0:03:02.8]}
5... a6 {[%clk 0:02:55]} 6. Bg5 {[%clk 0:03:02.7]} 6... e6 {[%clk 0:02:52.8]} 7.
f4 {[%clk 0:03:02.6]} 7... Be7 {[%clk 0:02:52.7]} 8. Qf3 {[%clk 0:03:02.4]} 8...
Nbd7 {[%clk 0:02:52.9]} 9. O-O-O {[%clk 0:03:02.1]} 9... Qc7 {[%clk 0:02:50.9]}
10. Bd3 {[%clk 0:03:01.5]} 10... h6 {[%clk 0:02:51.1]} 11. Bh4 {[%clk
0:02:59.8]} 11... b5 {[%clk 0:02:50.9]} 12. Rhe1 {[%clk 0:02:42.5]} 12... Bb7
{[%clk 0:02:50.4]} 13. a3 {[%clk 0:02:42.1]} 13... Rc8 {[%clk 0:02:49.3]} 14.
Kb1 {[%clk 0:02:37.5]} 14... Nc5 {[%clk 0:02:43.9]} 15. Bf2 {[%clk 0:02:28.5]}
15... Na4 {[%clk 0:02:23.3]} 16. Ncxb5 {[%clk 0:02:15.2]} 16... Qb8 {[%clk
0:02:05.2]} 17. Qe2 {[%clk 0:01:52]} 17... O-O {[%clk 0:02:02.7]} 18. e5 {[%clk
0:01:23.4]} 18... dxe5 {[%clk 0:01:57.4]} 19. fxe5 {[%clk 0:01:22.4]} 19... Nd5
{[%clk 0:01:57]} 20. Nd6 {[%clk 0:01:03.5]} 20... Bxd6 {[%clk 0:01:50.1]} 21.
exd6 {[%clk 0:01:03.3]} 21... Nac3+ {[%clk 0:01:48.9]} 22. bxc3 {[%clk
0:00:57.9]} 22... Nxc3+ {[%clk 0:01:48.3]} 23. Kc1 {[%clk 0:00:58.5]} 23...
Nxe2+ {[%clk 0:01:47]} 24. Nxe2 {[%clk 0:00:57.1]} 24... Bc6 {[%clk 0:01:31.9]}
25. Bc5 {[%clk 0:00:44.1]} 25... Bb5 {[%clk 0:01:18.2]} 26. Bb4 {[%clk
0:00:29.5]} 26... Bxd3 {[%clk 0:01:17.1]} 27. Rxd3 {[%clk 0:00:28.9]} 27... Rfd8
{[%clk 0:01:14.2]} 28. d7 {[%clk 0:00:26.8]} 28... Rc4 {[%clk 0:00:53]} 29. Ba5
{[%clk 0:00:20.1]} 29... Kf8 {[%clk 0:00:30.6]} 30. Bxd8 {[%clk 0:00:19.7]}
30... Qxd8 {[%clk 0:00:30.7]} 31. Red1 {[%clk 0:00:18.6]} 31... Ke7 {[%clk
0:00:27.3]} 32. Nd4 {[%clk 0:00:17.7]} 32... Rc5 {[%clk 0:00:22.5]} 33. Rb3
{[%clk 0:00:17.1]} 33... g6 {[%clk 0:00:19.8]} 34. Rb6 {[%clk 0:00:15.5]} 34...
Kf6 {[%clk 0:00:08.9]} 35. Rc6 {[%clk 0:00:11.5]} 35... Rd5 {[%clk 0:00:08]} 36.
Nxe6 {[%clk 0:00:01.6]} 36... fxe6 {[%clk 0:00:06.8]} 0-1

[Event "*** Titled Tuesday Blitz"]
[Site "Chess.com"]
[Date "2020.11.24"]
[Round "11"]
[White "andrzej"]
[Black "Nils_03"]
[Result "1/2-1/2"]
[WhiteElo "2386"]
[BlackElo "2262"]
[TimeControl "180+1"]
[EndTime "12:24:59 PST"]
[Termination "Game drawn by repetition"]

1. e4 {[%clk 0:03:00.9]} 1... e5 {[%clk 0:02:58.7]} 2. Nf3 {[%clk 0:03:01.1]}
2... Nc6 {[%clk 0:02:59.2]} 3. d4 {[%clk 0:03:01.4]} 3... exd4 {[%clk 0:02:59]}
4. Nxd4 {[%clk 0:03:02.3]} 4... Bc5 {[%clk 0:02:59.5]} 5. Nb3 {[%clk 0:03:02.4]}
5... Bb6 {[%clk 0:02:59.4]} 6. Nc3 {[%clk 0:03:02.9]} 6... d6 {[%clk 0:02:58.6]}
7. Qe2 {[%clk 0:03:02.7]} 7... Nf6 {[%clk 0:02:57.5]} 8. Be3 {[%clk 0:03:01.2]}
8... O-O {[%clk 0:02:56.9]} 9. O-O-O {[%clk 0:02:55.4]} 9... Ng4 {[%clk
0:02:52.9]} 10. Bxb6 {[%clk 0:02:39.8]} 10... axb6 {[%clk 0:02:53.8]} 11. Kb1
{[%clk 0:02:30.4]} 11... Be6 {[%clk 0:02:45.7]} 12. f4 {[%clk 0:02:19.6]} 12...
f5 {[%clk 0:02:28]} 13. h3 {[%clk 0:02:19.5]} 13... Nf6 {[%clk 0:02:27.2]} 14.
exf5 {[%clk 0:02:18.1]} 14... Bxf5 {[%clk 0:02:28.1]} 15. g4 {[%clk 0:02:18.6]}
15... Re8 {[%clk 0:02:16.6]} 16. Qd2 {[%clk 0:01:53.8]} 16... Ne4 {[%clk
0:02:01]} 17. Nxe4 {[%clk 0:01:26.4]} 17... Bxe4 {[%clk 0:02:01.9]} 18. Bc4+
{[%clk 0:01:25]} 18... Kh8 {[%clk 0:01:46.7]} 19. Rhe1 {[%clk 0:01:25.4]} 19...
d5 {[%clk 0:01:15.1]} 20. Bxd5 {[%clk 0:01:17.6]} 20... Bxd5 {[%clk 0:01:14.8]}
21. Rxe8+ {[%clk 0:01:17.4]} 21... Qxe8 {[%clk 0:01:15.7]} 22. Qxd5 {[%clk
0:01:17.8]} 22... Rxa2 {[%clk 0:01:10.3]} 23. Nc1 {[%clk 0:00:44.8]} 23... Ra4
{[%clk 0:01:01.6]} 24. f5 {[%clk 0:00:27.2]} 24... h6 {[%clk 0:00:51.4]} 25. Nb3
{[%clk 0:00:23.3]} 25... Re4 {[%clk 0:00:36.9]} 26. f6 {[%clk 0:00:20.6]} 26...
gxf6 {[%clk 0:00:33.5]} 27. Qf5 {[%clk 0:00:21.2]} 27... Kg7 {[%clk 0:00:27.4]}
28. Rd7+ {[%clk 0:00:17.3]} 28... Re7 {[%clk 0:00:27.1]} 29. Rd1 {[%clk
0:00:14.7]} 29... Re1 {[%clk 0:00:23.3]} 30. Rxe1 {[%clk 0:00:11.6]} 30... Qxe1+
{[%clk 0:00:24.2]} 31. Nc1 {[%clk 0:00:12.1]} 31... Qe7 {[%clk 0:00:19.3]} 32.
h4 {[%clk 0:00:11.6]} 32... Ne5 {[%clk 0:00:18.6]} 33. h5 {[%clk 0:00:10.4]}
33... Qd7 {[%clk 0:00:15.3]} 34. Qe4 {[%clk 0:00:09.7]} 34... Qxg4 {[%clk
0:00:14.5]} 35. Qxb7 {[%clk 0:00:09.6]} 35... Qd7 {[%clk 0:00:10.2]} 36. Qg2+
{[%clk 0:00:09.2]} 36... Qg4 {[%clk 0:00:09.6]} 37. Qb7 {[%clk 0:00:07.7]} 37...
Qd7 {[%clk 0:00:09.5]} 38. Qg2+ {[%clk 0:00:07.1]} 38... Qg4 {[%clk 0:00:08]}
39. Qb7 {[%clk 0:00:07.1]} 1/2-1/2